bitfinex/quotes_ETHUSD_20241223
["timestamp","ask_amount","ask_price","bid_price","bid_amount"]
[1734967053583,1.3926,3294.8,3293.2,0.1675456]
[1734967053823,1.3926,3294.8,3293.3,0.15558456]
[1734967053964,1.3926,3294.8,3293.3,0.77722895]
[1734967054171,2.37978301,3294.5,3293.4,0.03035675]
[1734967054477,1.50071193,3294.4,3293.2,0.1675456]
[1734967054678,1.4705,3294.4,3293.2,0.1675456]
[1734967054882,0.03021193,3294.3,3293.2,0.1675456]
[1734967055316,0.45007119,3294.2,3293.2,0.1675456]
[1734967055612,1.4705,3294.4,3293.2,0.1675456]
[1734967057015,0.03021193,3294.3,3293.2,0.1675456]
[1734967057469,3.03021193,3294.3,3293.2,0.1675456]
[1734967057806,0.03021193,3294.3,3293.2,0.1675456]
[1734967058373,1.479,3294.2,3293.2,0.1675456]
[1734967058712,0.48113312,3294.1,3293.2,0.1675456]
[1734967058895,0.03021193,3294.1,3293.2,0.1675456]
[1734967059078,1.50921193,3294.2,3293.2,0.1675456]
[1734967059283,1.479,3294.2,3293.2,0.1675456]
[1734967059479,0.03021193,3294.1,3293.2,0.1675456]
[1734967061093,1.479,3294.2,3293.2,4.7157956]
[1734967061286,1.479,3294.2,3293.2,2.15082516]
[1734967061920,1.44,3295.0,3293.2,2.15082516]
[1734967062116,1.44,3295.0,3293.2,1.6792456]
[1734967062330,1.44,3295.0,3293.3,3.0364]
[1734967062533,1.44,3295.0,3293.4,0.62182188]
[1734967062736,1.44,3295.7,3293.8,3.036]
[1734967063036,1.44,3295.7,3293.9,4.48711]
[1734967063037,0.03021193,3295.6,3293.9,4.48711]
[1734967063336,3.18408451,3295.6,3293.9,1.4512]
[1734967063634,0.76583345,3295.5,3293.9,1.4512]
[1734967063835,0.03021193,3295.4,3293.9,1.4512]
[1734967064641,3.06476193,3295.4,3293.9,1.4512]
[1734967064824,1.4569,3294.9,3293.4,1.5155]
[1734967065026,1.4569,3294.5,3293.2,0.1675456]
[1734967065208,3.0,3294.0,3293.2,0.1675456]
[1734967065414,1.4569,3293.8,3293.2,0.1675456]
[1734967065808,1.4797,3294.3,3293.2,0.1675456]
[1734967066025,1.4797,3294.3,3293.3,1.4438]
[1734967067257,1.448,3294.8,3293.4,3.03629]
[1734967067438,1.47821193,3294.8,3293.3,1.4438]
[1734967067813,1.448,3294.8,3293.3,1.66490139]
[1734967068048,1.448,3294.8,3293.5,3.03628]
[1734967068249,1.448,3294.8,3293.4,3.03634]
[1734967068451,1.448,3294.8,3293.5,0.03035656]
[1734967068658,1.448,3295.3,3293.9,3.03588]
[1734967068967,1.448,3295.3,3293.5,0.03035656]
[1734967068968,1.448,3295.3,3294.0,3.339398]
[1734967069113,1.448,3295.3,3294.1,1.47515212]
[1734967069311,1.448,3295.3,3294.3,3.03553]
[1734967069511,1.5244,3295.8,3294.5,3.03532]
[1734967069722,1.67684,3295.8,3294.5,3.03532]
[1734967069949,1.5244,3295.8,3294.6,3.03523]
[1734967070966,1.4934,3296.4,3294.7,0.03034611]
[1734967071111,1.4934,3296.4,3293.9,3.0]
[1734967071112,0.03021193,3296.3,3294.8,4.56647]
[1734967071317,1.4934,3296.4,3295.1,0.59791604]
[1734967071546,1.95812726,3296.4,3295.1,0.59791604]
[1734967071712,0.03021193,3296.3,3295.1,0.59791604]
[1734967072111,0.49493919,3296.4,3295.1,0.59791604]
[1734967072452,1.5004,3297.1,3295.7,1.3843]
[1734967072664,1.5004,3297.1,3295.7,4.41848]
[1734967072813,1.5004,3297.1,3296.0,3.64465723]
[1734967073020,1.5004,3297.1,3296.1,3.03388]
[1734967073322,0.03021193,3297.0,3295.7,1.3843]
[1734967073721,0.03021193,3297.0,3295.9,0.61660092]
[1734967073922,0.15306119,3296.9,3295.9,0.61660092]
[1734967074341,0.03021193,3296.8,3295.9,0.61660092]
[1734967075458,0.03021193,3297.0,3295.9,0.61660092]
[1734967075659,1.4093,3296.9,3295.9,0.61660092]
[1734967075864,1.4093,3296.7,3294.5,1.457]
[1734967076072,1.4093,3296.7,3295.6,0.6172648]
[1734967076073,1.4093,3296.5,3295.6,0.6172648]
[1734967076229,1.4093,3296.3,3294.0,1.457]
[1734967076427,0.03021193,3296.2,3294.9,0.61088056]
[1734967077757,1.4648,3296.1,3294.6,0.61537993]
[1734967077925,4.4648,3295.8,3294.6,0.61537993]
[1734967078128,4.49501193,3295.8,3294.6,0.61537993]
[1734967078323,0.44950119,3295.7,3294.6,0.61537993]
[1734967078569,1.4648,3295.8,3294.6,0.61537993]
[1734967080976,0.03021193,3295.7,3294.0,1.457]
[1734967081179,1.4789,3295.6,3294.0,1.457]
[1734967081361,0.03021193,3295.5,3294.1,0.60345429]
[1734967081536,0.03021193,3295.5,3293.3,3.37497397]
[1734967081537,1.3796,3295.3,3293.3,1.5082]
[1734967081742,3.0,3294.8,3293.2,0.1675456]
[1734967081968,1.3796,3294.6,3293.2,0.1675456]
[1734967082166,0.03021193,3294.5,3293.9,0.61902574]
[1734967082814,0.03021193,3294.5,3293.2,0.1675456]
[1734967082815,1.4885,3294.4,3293.2,0.1675456]
[1734967082937,0.03021193,3294.5,3293.2,0.1675456]
[1734967082938,1.4885,3294.2,3293.2,0.1675456]
[1734967083137,3.0,3294.0,3293.2,0.1675456]
[1734967083375,1.4893,3293.8,3293.2,0.1675456]
[1734967083588,1.4893,3293.3,3293.2,0.1675456]
[1734967083788,1.4893,3293.3,3291.6,1.22722088]
[1734967083789,3.03774,3292.0,3291.6,1.22722088]
[1734967084053,6.19132258,3292.3,3291.2,1.22722088]
[1734967084054,0.7056,3291.9,3291.2,1.22722088]
[1734967084600,3.0,3291.7,3291.2,1.22722088]
[1734967084763,0.73581193,3291.9,3291.2,1.22722088]
[1734967084978,0.7056,3291.9,3291.2,1.22722088]
[1734967085486,0.7056,3291.9,3290.4,3.65097828]
[1734967085653,0.7056,3291.9,3290.4,3.68136042]
[1734967085855,0.7056,3291.9,3290.4,0.64223042]
[1734967086095,0.7056,3291.9,3290.4,0.61184828]
[1734967086295,0.03021193,3291.8,3289.9,0.1675456]
[1734967086498,0.7056,3291.9,3290.0,0.03038418]
[1734967086796,0.7056,3291.9,3290.2,3.03932]
[1734967087496,0.7056,3291.9,3290.3,3.06955417]
[1734967087650,0.7056,3291.9,3290.3,0.03038417]
[1734967087855,0.7056,3291.9,3289.9,0.32766804]
[1734967087856,0.7056,3291.9,3290.2,3.03932]
[1734967088056,0.7056,3291.9,3290.3,0.303932]
[1734967088586,0.7056,3291.9,3290.3,0.33431682]
[1734967088780,0.7056,3291.9,3290.3,0.303932]
[1734967088988,0.7056,3291.9,3290.3,0.33431534]
[1734967089174,0.7056,3291.9,3290.3,0.303932]
[1734967089374,0.7056,3291.9,3290.4,0.3343252]
[1734967089958,0.03021193,3291.8,3290.3,0.61955498]
[1734967090152,0.7056,3291.9,3290.3,0.61955498]
[1734967090455,3.15387258,3291.8,3290.4,0.03038482]
[1734967090671,3.0,3291.7,3290.3,0.61955498]
[1734967091699,0.7056,3291.9,3290.4,0.03038583]
[1734967091918,0.7056,3291.9,3290.5,1.5175]
[1734967092245,0.7056,3291.9,3290.6,0.15478858]
[1734967092401,0.7056,3291.9,3290.8,0.59903104]
[1734967092597,0.03021193,3291.8,3290.1,3.03941]
[1734967092848,0.7056,3291.9,3290.3,0.6169362]
[1734967093055,0.03021193,3292.2,3290.3,0.6169362]
[1734967093056,3.0,3291.2,3290.3,0.6169362]
[1734967093259,3.03871,3290.9,3289.9,0.1675456]
[1734967093416,3.0,3290.3,3289.9,0.1675456]
[1734967093603,2.06629919,3290.2,3289.9,0.1675456]
[1734967093804,2.03608726,3290.2,3289.9,0.1675456]
[1734967094045,1.4619,3290.6,3289.9,0.1675456]
[1734967095060,4.61577258,3291.4,3290.0,0.03039205]
[1734967095255,2.37978301,3291.8,3291.0,3.03857]
[1734967095478,1.4157,3292.3,3290.6,1.4138]
[1734967095624,1.4157,3292.3,3291.0,3.03853]
[1734967095980,1.4157,3292.3,3291.1,0.62012292]
[1734967096379,0.03021193,3292.2,3291.0,0.303853]
[1734967096673,3.0,3291.8,3290.7,0.6215849]
[1734967096825,3.15387258,3291.9,3290.6,1.4138]
[1734967097026,1.4157,3292.3,3290.7,0.03038115]
[1734967097262,1.4157,3292.3,3290.8,0.20390849]
[1734967097464,1.4157,3292.3,3290.9,0.0303768]
[1734967097711,1.4601,3292.8,3291.5,1.5101]
[1734967097912,1.4601,3292.8,3291.5,4.54818]
[1734967098076,1.4601,3293.2,3291.6,0.03037476]
[1734967098278,1.4601,3293.2,3291.7,0.2146587]
[1734967098496,0.03021193,3293.1,3291.5,2.11621228]
[1734967098679,0.46563963,3293.1,3291.5,1.5101]
[1734967099304,0.4354277,3293.1,3291.5,1.5101]
[1734967099510,4.4436,3292.2,3290.9,1.4501]
[1734967099715,1.22538689,3292.1,3290.5,1.4531]
[1734967100062,3.03775,3291.9,3290.2,0.60934082]
[1734967100292,1.4436,3291.7,3289.8,1.4531]
[1734967100504,1.4436,3291.5,3289.8,2.0546436]
[1734967100658,0.52113589,3291.4,3289.8,2.0546436]
[1734967100856,1.8790277,3291.5,3290.0,0.03038882]
[1734967101061,1.4436,3291.5,3290.0,0.03038882]
[1734967101307,1.4436,3291.5,3289.8,5.12462966]
[1734967101662,1.4436,3291.5,3290.0,0.03038605]
[1734967101899,1.4436,3291.5,3290.0,3.06988605]
[1734967102106,1.4436,3291.5,3290.1,0.32374317]
[1734967102321,1.4436,3291.5,3290.0,0.03038605]
[1734967103085,1.4436,3291.5,3290.1,3.03933]
[1734967103282,1.4436,3291.5,3290.2,0.03038394]
[1734967103812,1.4436,3291.5,3290.0,0.03038393]
[1734967103999,1.4436,3291.5,3290.2,3.03932]
[1734967104198,1.4436,3291.5,3290.3,3.0695545]
[1734967104725,1.4436,3291.5,3290.3,0.03038202]
[1734967104926,1.4436,3291.5,3290.1,3.03941]
[1734967105226,1.4436,3291.5,3290.0,0.03038382]
[1734967105435,0.78995919,3292.1,3289.9,0.1675456]
[1734967105436,3.0,3291.0,3289.9,0.1675456]
[1734967105727,1.3811,3290.4,3289.9,0.1675456]
[1734967105932,0.03021193,3290.3,3289.9,0.1675456]
[1734967106137,1.3811,3290.4,3289.9,0.1675456]
[1734967107217,1.3811,3290.2,3289.9,0.1675456]
[1734967109038,1.3811,3290.8,3289.9,0.1675456]
[1734967109340,1.58074873,3290.8,3289.9,0.1675456]
[1734967109502,0.03021193,3290.7,3289.9,0.1675456]
[1734967109685,1.4732,3290.6,3289.9,0.1675456]
[1734967109899,1.4732,3290.4,3289.9,0.1675456]
[1734967110097,0.03021193,3290.3,3289.9,0.1675456]
[1734967110625,1.4732,3290.2,3289.9,0.1675456]
[1734967111225,1.4239,3290.0,3289.9,0.1675456]
[1734967111409,4.4239,3290.0,3289.9,0.1675456]
[1734967112242,10.83842863,3290.0,3289.9,0.1675456]
[1734967112397,11.5691197,3290.0,3289.9,0.1675456]
[1734967112593,12.01423893,3290.0,3289.9,0.1675456]
[1734967112822,16.13189593,3290.0,3289.9,0.1675456]
[1734967113038,15.67331493,3290.0,3289.9,0.1675456]
[1734967113245,3.0,3289.7,3287.3,1.4393]
[1734967113444,11.20990493,3290.0,3287.4,0.448137]
[1734967113445,0.5362,3289.1,3287.4,0.448137]
[1734967113610,0.5362,3288.9,3287.0,3.04228]
[1734967113807,0.03021193,3288.8,3287.1,3.04217]
[1734967114133,0.56641193,3288.9,3286.9,4.51168274]
[1734967114329,3.56641193,3288.9,3287.0,0.45116827]
[1734967114532,1.8025,3289.6,3287.9,1.4389]
[1734967115114,1.8025,3289.6,3287.9,4.48032]
[1734967115319,1.8025,3289.6,3287.9,1.4389]
[1734967115523,4.4799,3289.5,3287.6,3.04169]
[1734967115704,0.781984,3289.4,3287.8,0.60038094]
[1734967116099,0.781984,3289.4,3288.0,3.04134]
[1734967116335,1.4799,3290.1,3288.5,3.04084]
[1734967116516,1.4799,3290.1,3287.9,1.4591]
[1734967116517,0.4354277,3290.0,3288.2,3.04109]
[1734967116731,1.4799,3289.9,3287.9,1.4591]
[1734967116906,1.4799,3289.9,3288.0,3.04136]
[1734967117105,1.4799,3289.9,3288.9,3.04046]
[1734967117352,0.31614171,3291.4,3288.9,3.04046]
[1734967117353,1.4799,3290.6,3289.2,3.04023]
[1734967117552,3.15387258,3290.3,3289.0,0.61202284]
[1734967117866,1.4799,3290.1,3288.2,3.04113]
[1734967118026,0.46563963,3290.0,3288.3,3.04106]
[1734967118226,0.19455396,3289.9,3288.4,0.304106]
[1734967118457,0.19455396,3289.9,3288.4,3.0713831]
[1734967118653,0.19455396,3289.9,3288.5,0.03040038]
[1734967118965,1.4799,3290.1,3288.5,0.03040038]
[1734967119152,1.4799,3290.1,3288.9,3.04048]
[1734967119354,1.4799,3290.1,3288.7,1.4591]
[1734967119664,1.4799,3290.1,3288.7,4.49981]
[1734967119974,0.46563963,3290.0,3287.8,1.4591]
[1734967120177,3.15387258,3289.7,3287.3,1.4591]
[1734967120364,3.04034,3289.1,3287.3,1.4591]
[1734967120567,0.46563963,3289.0,3287.5,0.6224457]
[1734967121273,3.0,3288.7,3286.9,1.4472]
[1734967121422,0.63427993,3288.6,3287.0,0.448965]
[1734967121621,0.604068,3288.6,3287.1,3.04219]
[1734967121832,3.15387258,3289.2,3286.9,1.47761729]
[1734967121833,3.0,3289.6,3287.3,0.61750856]
[1734967122065,3.0,3289.6,3287.3,0.64791789]
[1734967122066,0.03021193,3289.5,3287.3,0.64791789]
[1734967122274,0.03021193,3289.5,3287.6,3.0417]
[1734967122479,3.0,3289.6,3287.6,0.03040933]
[1734967122683,4.217427,3290.1,3287.9,3.04139]
[1734967122833,5.72421236,3290.0,3288.0,3.37583122]
[1734967123040,1.4779,3290.0,3288.8,3.04062]
[1734967123355,1.4779,3290.0,3289.4,3.04005]
[1734967123565,2.673341,3290.6,3289.3,3.04013]
[1734967123768,1.4561,3290.6,3289.3,3.04013]
[1734967124080,1.4561,3290.6,3289.0,1.4472]
[1734967124285,1.4561,3290.6,3288.7,0.60585555]
[1734967124286,1.4561,3290.0,3288.0,1.712039]
[1734967124434,3.15387258,3290.2,3288.0,1.4079]
[1734967124435,3.03979,3289.7,3288.0,1.4079]
[1734967124635,1.45631193,3289.6,3288.0,1.4079]
[1734967124840,0.03021193,3289.5,3287.6,1.48]
[1734967125046,1.4261,3289.3,3287.6,1.48]
[1734967125288,0.18917396,3289.4,3287.6,1.48]
[1734967125289,1.4261,3289.1,3287.6,1.48]
[1734967125598,0.03021193,3289.0,3287.2,1.48]
[1734967126141,1.4261,3288.9,3287.2,1.48]
[1734967126488,1.45631193,3288.9,3287.2,1.48]
[1734967126708,1.45631193,3288.9,3287.3,0.20940238]
[1734967127046,1.4261,3288.9,3287.3,0.20940238]
[1734967127688,1.4261,3288.9,3287.4,0.03041181]
[1734967127885,1.4261,3288.9,3287.5,3.04174]
[1734967128087,1.4261,3288.9,3287.3,0.20940238]
[1734967128088,0.03021193,3288.8,3287.3,0.20940238]
[1734967128393,0.03021193,3288.8,3287.4,0.16894024]
[1734967129162,1.4261,3288.9,3287.4,0.16894024]
[1734967130147,1.4261,3288.9,3287.5,3.07215042]
[1734967130363,1.4261,3288.9,3287.4,0.16894024]
[1734967130695,1.4261,3288.9,3287.5,3.04173]
[1734967130850,1.4261,3288.9,3287.6,0.32106702]
[1734967131055,0.03021193,3288.8,3287.3,0.20940238]
[1734967131255,1.4261,3288.9,3287.3,0.20940238]
[1734967131256,1.4261,3288.9,3287.3,3.25139238]
[1734967131456,1.4261,3288.9,3287.3,0.20940238]
[1734967131658,1.4261,3288.9,3287.7,3.04161]
[1734967131969,1.4261,3288.9,3287.8,0.304161]
[1734967132169,1.4261,3288.9,3287.4,3.07228997]
[1734967132679,1.4261,3288.9,3287.9,0.6235009]
[1734967132878,0.03021193,3288.8,3287.3,0.20940238]
[1734967133062,0.4354277,3289.5,3287.0,3.04224]
[1734967133063,1.3829,3288.7,3287.0,3.04224]
[1734967133263,0.03021193,3288.6,3287.1,0.304224]
[1734967133494,1.3829,3288.7,3286.7,0.03041259]
[1734967133696,0.03021193,3288.6,3286.9,3.04236]
[1734967133868,0.03021193,3288.6,3287.5,0.61435776]
[1734967134370,1.4746,3288.5,3287.5,0.61435776]
[1734967135404,0.03021193,3288.4,3287.5,0.61435776]
[1734967135708,1.3928,3288.3,3286.9,0.62239588]
[1734967135863,0.03021193,3288.2,3286.9,0.62239588]
[1734967136207,1.3928,3288.3,3286.9,0.62239588]
[1734967136408,1.42301193,3288.3,3286.9,0.62239588]
[1734967136575,1.3928,3288.3,3286.9,0.62239588]
[1734967136991,1.3928,3288.3,3287.1,3.0421]
[1734967137194,1.3928,3288.3,3287.3,3.04197]
[1734967137372,1.3928,3288.3,3287.3,0.03041284]
[1734967137574,1.3928,3288.3,3287.2,0.30421]
[1734967137772,1.3928,3288.3,3287.3,3.04198]
[1734967138709,1.3928,3288.3,3287.6,3.04167]
[1734967139073,1.3928,3288.3,3287.2,3.04203]
[1734967139074,1.3928,3288.3,3287.5,3.04173]
[1734967139274,1.3928,3288.3,3287.7,0.60831425]
[1734967139606,1.3928,3288.3,3287.1,3.04218]
[1734967139767,1.3928,3288.3,3287.2,0.304218]
[1734967140106,1.3928,3288.3,3286.9,1.5175]
[1734967140312,1.3928,3288.3,3286.5,4.53241]
[1734967140463,1.4284,3288.1,3287.1,0.60624163]
[1734967140923,1.4284,3288.1,3286.6,0.1675456]
[1734967140924,1.4625,3288.1,3286.6,0.1675456]
[1734967141213,0.02021193,3288.0,3286.6,0.1675456]
[1734967141378,1.4625,3287.9,3286.6,0.1675456]
[1734967141912,1.4625,3287.9,3286.7,0.64983033]
[1734967142098,1.54201193,3287.8,3286.7,0.61940886]
[1734967142261,1.5218,3287.6,3286.7,0.61940886]
[1734967142461,1.4775,3287.4,3286.6,0.1675456]
[1734967143711,0.02021193,3287.3,3286.6,0.1675456]
[1734967143911,1.4775,3287.4,3286.6,0.1675456]
[1734967144118,0.02021193,3287.3,3286.6,0.1675456]
[1734967144270,1.4884,3287.2,3286.6,0.1675456]
[1734967144469,0.02021193,3287.3,3286.6,0.1675456]
[1734967144470,1.4884,3287.0,3286.6,0.1675456]
[1734967146615,1.4331,3288.3,3286.6,0.1675456]
[1734967146782,1.4331,3288.1,3286.6,0.1675456]
[1734967146984,2.78330443,3288.2,3286.6,0.78945259]
[1734967146985,1.4331,3288.0,3286.6,0.78945259]
[1734967147177,2.37978301,3288.2,3287.4,3.0419]
[1734967147374,2.37978301,3288.2,3287.6,3.04172]
[1734967147580,2.37978301,3288.2,3286.9,1.4131]
[1734967147776,1.4331,3288.5,3287.6,0.60714905]
[1734967147978,1.4101,3288.3,3286.6,0.1675456]
[1734967148179,0.02021193,3288.2,3287.5,0.59659895]
[1734967148377,1.4101,3288.1,3286.6,0.1675456]
[1734967148574,4.47170193,3288.0,3286.6,0.1675456]
[1734967148775,1.4751,3287.8,3286.6,0.1675456]
[1734967149123,1.4751,3287.7,3286.6,0.1675456]
[1734967149712,1.4751,3287.5,3286.6,0.1675456]
[1734967149913,1.4751,3287.3,3286.6,0.1675456]
[1734967150114,3.0,3287.0,3286.6,0.1675456]
[1734967150296,1.4491,3286.8,3286.6,0.1675456]
[1734967150492,11.11487221,3286.7,3286.6,0.1675456]
[1734967150714,11.71234319,3286.7,3286.6,0.1675456]
[1734967151027,11.71234319,3286.7,3285.6,0.3783879]
[1734967151028,0.2791,3286.4,3285.6,0.3783879]
[1734967152111,0.2791,3286.4,3286.1,3.04305]
[1734967152295,1.5027,3287.1,3285.6,0.3783879]
[1734967152500,0.02021193,3287.0,3285.6,0.3783879]
[1734967152678,1.5027,3286.9,3285.6,0.3783879]
[1734967152884,1.3991,3286.7,3285.6,0.3783879]
[1734967153203,1.3991,3286.7,3285.7,0.03043437]
[1734967153398,1.3991,3286.7,3285.6,0.3783879]
[1734967153719,1.3991,3286.7,3286.5,3.04274]
[1734967153927,1.3757,3287.2,3286.2,0.59585365]
[1734967154078,3.75548301,3287.7,3287.4,3.04191]
[1734967154282,3.75548301,3287.7,3286.4,1.4652]
[1734967154283,2.37978301,3287.8,3286.6,0.03041723]
[1734967154518,2.39999494,3287.8,3286.8,3.04242]
[1734967154714,2.37978301,3287.8,3286.8,3.04242]
[1734967155295,2.37978301,3287.8,3286.9,0.60908535]
[1734967155493,3.0,3287.7,3286.9,0.60908535]
[1734967155706,3.0,3287.7,3286.4,1.4652]
[1734967155926,1.3757,3287.9,3287.1,3.04215]
[1734967156431,1.3757,3287.9,3287.4,3.04191]
[1734967156726,1.3757,3287.9,3287.4,3.04189]
[1734967156933,1.4982,3288.4,3287.5,3.345999]
[1734967157111,1.4982,3288.4,3287.5,3.04181]
[1734967157480,1.4982,3288.4,3287.2,4.45072]
[1734967157883,1.4982,3288.4,3286.8,1.4251]
[1734967157884,0.02021193,3288.3,3286.8,1.4251]
[1734967158132,0.4354277,3288.3,3286.8,1.4251]
[1734967158428,1.4982,3288.4,3287.3,0.61985587]
[1734967158647,1.4982,3288.4,3287.3,3.66185587]
[1734967158783,0.02021193,3288.3,3287.3,3.66185587]
[1734967158985,0.02021193,3288.3,3287.3,0.61985587]
[1734967159214,1.4982,3288.4,3287.5,3.0418]
[1734967159533,0.02021193,3288.3,3287.5,3.0418]
[1734967159828,1.4982,3288.4,3287.5,0.36616559]
[1734967159982,1.4657,3288.9,3288.0,3.04128]
[1734967160186,1.4657,3288.9,3288.2,3.04112]
[1734967160589,1.4657,3288.9,3287.7,1.4226]
[1734967160931,1.4657,3288.9,3288.2,3.04117]
[1734967161145,1.4835,3289.3,3289.2,3.04025]
[1734967161318,2.37978301,3289.5,3287.7,1.4226]
[1734967161319,2.37978301,3289.5,3289.1,3.04034]
[1734967161500,2.37978301,3289.7,3288.8,3.04062]
[1734967161830,1.4835,3290.6,3289.1,3.04034]
[1734967162028,1.4835,3290.6,3288.9,0.47746842]
[1734967162029,1.4835,3290.6,3289.4,1.4301]
[1734967162228,1.4835,3290.6,3290.2,3.03932]
[1734967162531,1.4326,3291.6,3291.2,3.03839]
[1734967162738,1.4326,3292.2,3291.6,3.03797]
[1734967162933,1.4326,3292.2,3291.3,1.4065]
[1734967163225,0.49633002,3293.1,3290.1,1.4065]
[1734967163226,1.3619,3292.0,3290.1,1.4065]
[1734967163432,0.02021193,3291.9,3290.5,0.61966371]
[1734967163626,1.3619,3292.0,3290.6,3.03894]
[1734967163627,1.7415277,3292.0,3290.6,3.03894]
[1734967163927,0.17415277,3291.9,3290.7,3.03884]
[1734967164234,0.17415277,3291.9,3290.1,1.4065]
[1734967164235,1.3619,3291.7,3290.1,4.44585]
[1734967164431,1.3619,3291.7,3290.4,0.61862769]
[1734967164802,1.3619,3291.7,3290.4,0.64900991]
[1734967165235,1.5071,3292.7,3290.5,3.03905]
[1734967165386,1.5071,3292.3,3290.1,1.4065]
[1734967165588,1.8867277,3292.2,3290.2,0.03038306]
[1734967165783,1.8867277,3292.2,3290.7,3.65930596]
[1734967166036,0.18867277,3292.1,3290.8,0.03038055]
[1734967166277,0.15273119,3292.6,3291.9,3.03775]
[1734967166278,2.44641947,3292.5,3291.9,3.03775]
[1734967167233,2.44641947,3292.5,3292.1,3.03755]
[1734967167573,1.4423,3293.1,3292.3,3.03734]
[1734967167868,1.4423,3293.9,3292.3,1.4347]
[1734967168067,2.44641947,3294.1,3292.8,3.03692]
[1734967168237,2.44641947,3294.1,3293.8,3.03597]
[1734967168421,2.44641947,3294.1,3293.9,3.03587]
[1734967168620,0.79183914,3294.9,3293.9,3.03587]
[1734967168824,0.79183914,3294.9,3294.1,3.03571]
[1734967169035,0.79183914,3294.9,3293.8,3.03593]
[1734967169264,0.22341391,3294.8,3294.0,3.0358]
[1734967169462,0.22341391,3294.8,3294.1,3.03571]
[1734967169668,0.31605653,3294.9,3294.4,3.03541]
[1734967170008,2.44641947,3295.1,3294.4,3.03541]
[1734967170341,2.44641947,3295.1,3294.9,3.03497]
[1734967170569,1.4335,3295.9,3294.9,3.03497]
[1734967170954,1.4335,3295.9,3294.7,3.03514]
[1734967171185,0.02021193,3295.8,3294.4,3.03542]
[1734967171486,1.4335,3295.6,3293.7,3.15387258]
[1734967171654,3.6155924,3295.5,3293.5,4.52531]
[1734967171855,3.0,3295.4,3293.5,4.52531]
[1734967172187,1.4359,3295.0,3293.5,3.03625]
[1734967172369,0.02021193,3294.9,3293.2,0.03035398]
[1734967172593,1.4359,3295.0,3293.3,0.03035253]
[1734967172796,1.4359,3295.0,3293.3,0.55508624]
[1734967173107,1.4359,3295.0,3294.0,3.03578]
[1734967173307,1.4359,3295.0,3293.6,0.03034984]
[1734967173477,1.4359,3295.0,3293.9,3.03591]
[1734967173697,1.4359,3295.0,3293.6,0.60941221]
[1734967173880,1.4359,3295.0,3293.6,3.64559221]
[1734967174204,1.4359,3295.0,3293.6,3.64558221]
[1734967174404,0.02021193,3295.4,3292.5,1.215176]
[1734967174405,1.408,3294.7,3292.7,3.15387258]
[1734967174609,0.46451993,3294.6,3292.5,1.42106128]
[1734967174817,0.444308,3294.6,3292.9,3.03683]
[1734967174978,0.02021193,3295.3,3293.8,3.15387258]
[1734967174979,1.408,3295.3,3293.8,3.15387258]
[1734967175189,0.18131277,3295.5,3294.0,3.03582]
[1734967175513,1.408,3295.7,3294.0,0.03034075]
[1734967176015,1.408,3295.7,3295.0,3.0349]
[1734967176193,1.408,3295.7,3294.0,0.03034075]
[1734967176503,1.408,3295.7,3294.3,0.59712297]
[1734967176708,1.408,3295.7,3294.2,3.03555]
[1734967176858,1.408,3295.7,3294.2,0.03034581]
[1734967177063,1.408,3295.7,3294.1,3.03566]
[1734967177263,1.408,3295.7,3294.2,0.0303472]
[1734967177525,1.408,3295.7,3294.4,3.03543]
[1734967178212,1.408,3295.7,3294.2,0.0303472]
[1734967178421,0.02021193,3295.6,3294.1,0.60430183]
[1734967178719,1.408,3295.7,3294.1,0.60430183]
[1734967179064,1.408,3295.7,3294.3,3.03549]
[1734967180096,3.03384,3296.2,3293.0,0.14979071]
[1734967180097,0.02021193,3295.6,3293.0,0.14979071]
[1734967180312,1.4508,3295.3,3293.5,3.03619]
[1734967180486,1.4508,3295.1,3293.3,3.03645]
[1734967180677,1.47101193,3295.0,3293.3,3.03645]
[1734967180879,1.47101193,3295.0,3293.4,0.5946965]
[1734967181483,1.47101193,3295.0,3293.4,3.6310665]
[1734967181685,1.4629,3294.6,3292.8,1.4356]
[1734967182019,1.4629,3294.4,3292.6,3.03703]
[1734967182227,1.4629,3294.0,3292.3,4.40717]
[1734967182379,1.4629,3293.8,3292.0,3.03761]
[1734967182574,1.4629,3293.6,3292.1,3.03754]
[1734967182775,0.02021193,3293.5,3292.1,0.59329764]
[1734967183022,3.3796277,3294.2,3292.1,0.59329764]
[1734967183023,3.0,3293.7,3292.1,0.59329764]
[1734967183185,1.4363,3293.5,3292.0,3.03764]
[1734967183379,0.02021193,3293.4,3292.0,3.03764]
[1734967183578,1.4363,3293.3,3291.8,3.03783]
[1734967183839,0.02021193,3293.2,3291.6,3.03802]
[1734967184011,1.396,3293.1,3291.3,4.52854]
[1734967184194,0.02021193,3293.0,3290.3,1.3713]
[1734967184393,1.396,3292.5,3290.6,1.215881]
[1734967184714,0.02021193,3292.4,3290.8,3.64767834]
[1734967184877,0.02021193,3292.4,3290.3,4.41052]
[1734967184878,1.396,3292.3,3290.5,3.03898]
[1734967185091,1.396,3292.3,3290.3,1.3713]
[1734967185092,1.396,3292.3,3290.7,0.62133559]
[1734967185342,1.396,3292.3,3291.7,3.03793]
[1734967185509,1.396,3292.3,3290.7,0.62133559]
[1734967185510,1.396,3292.3,3291.3,1.3713]
[1734967185706,1.396,3292.3,3291.3,1.40167269]
[1734967185906,0.02021193,3293.6,3291.6,0.60819716]
[1734967185907,1.396,3293.6,3291.6,0.60819716]
[1734967186107,3.03548,3294.4,3291.6,0.63856715]
[1734967186108,0.02021193,3293.5,3291.6,0.63856715]
[1734967186337,1.4601,3293.5,3291.7,3.03792]
[1734967186522,1.4601,3293.4,3291.9,3.03774]
[1734967186851,1.4601,3293.4,3292.0,3.03766]
[1734967187338,1.4601,3293.4,3292.1,3.03756]
[1734967187492,1.4601,3293.4,3291.7,0.36461172]
[1734967187700,0.02021193,3293.3,3291.7,3.0379]
[1734967188024,1.4794,3293.2,3292.0,3.03763]
[1734967188729,1.4794,3293.2,3292.3,3.03737]
[1734967189226,1.4794,3293.2,3291.9,3.0377]
[1734967189409,1.4794,3293.2,3292.1,3.03748]